bitfinex-derivatives/quotes_BTCF0:USTF0_20241003
["timestamp","ask_amount","ask_price","bid_price","bid_amount"]
[1727943744773,0.049651,60406.0,60405.0,0.00248298]
[1727943744953,0.049651,60406.0,60405.0,0.00748298]
[1727943745756,0.049651,60406.0,60405.0,0.02405298]
[1727943746357,0.44,60419.0,60405.0,0.02157]
[1727943746664,0.066214,60413.0,60405.0,0.02157]
[1727943746965,0.00248392,60421.0,60405.0,0.02157]
[1727943746966,0.44,60409.0,60405.0,0.02157]
[1727943747165,0.066221,60406.0,60405.0,0.02157]
[1727943747464,0.066218,60410.0,60405.0,0.01657]
[1727943748865,0.44,60409.0,60399.0,0.3608]
[1727943749174,0.44,60402.0,60391.0,0.00197]
[1727943749355,0.3608,60404.0,60391.0,0.00197]
[1727943749356,0.066234,60395.0,60391.0,0.00197]
[1727943749555,0.0341,60401.0,60391.0,0.00197]
[1727943749556,0.356236,60393.0,60391.0,0.00197]
[1727943749961,0.356236,60393.0,60377.0,0.3608]
[1727943749962,0.3608,60392.0,60377.0,0.3608]
[1727943750161,0.3608,60392.0,60369.0,0.06600062]
[1727943750162,0.066246,60384.0,60369.0,0.06600062]
[1727943750364,0.066248,60382.0,60378.0,0.01657]
[1727943750552,0.3959,60392.0,60378.0,0.01657]
[1727943750553,0.066244,60385.0,60378.0,0.01657]
[1727943750758,0.3608,60379.0,60378.0,0.01657]
[1727943750965,0.3608,60379.0,60365.0,0.00248401]
[1727943750966,0.85768,60379.0,60365.0,0.00248401]
[1727943751266,0.29,60371.0,60365.0,0.00248401]
[1727943751658,0.356255,60376.0,60365.0,0.00248401]
[1727943752061,0.356255,60376.0,60365.0,0.01448401]
[1727943752259,0.3608,60379.0,60366.0,0.29]
[1727943752465,0.3608,60379.0,60371.0,0.29]
[1727943752466,0.39117555,60379.0,60371.0,0.29]
[1727943753266,0.39117555,60379.0,60368.0,0.01658]
[1727943754264,0.29,60376.0,60368.0,0.01658]
[1727943754575,0.066256,60375.0,60368.0,0.01658]
[1727943754870,0.066256,60375.0,60368.0,0.02558]
[1727943755166,0.29,60376.0,60368.0,0.02558]
[1727943755167,0.39117555,60379.0,60373.0,0.29]
[1727943755572,0.03037555,60379.0,60373.0,0.6508]
[1727943755775,0.09934,60390.0,60373.0,0.6508]
[1727943755776,0.0331,60390.0,60373.0,0.6508]
[1727943756161,0.02978415,60390.0,60378.0,0.29]
[1727943756477,0.134539,60391.0,60378.0,0.29]
[1727943756667,0.0683,60391.0,60373.0,0.3608]
[1727943756872,0.066244,60386.0,60373.0,0.3608]
[1727943757060,0.0332,60391.0,60378.0,0.29]
[1727943757371,0.06325573,60391.0,60383.0,0.29]
[1727943757771,0.03005573,60391.0,60388.0,0.29]
[1727943757963,0.4652,60397.0,60388.0,0.29]
[1727943757964,0.46392,60397.0,60388.0,0.29]
[1727943758165,0.00248502,60399.0,60394.0,0.29]
[1727943758472,0.00248502,60399.0,60398.0,0.29]
[1727943759061,0.3608,60411.0,60398.0,1.38672]
[1727943759271,0.36208,60418.0,60408.0,0.29]
[1727943759472,0.066195,60431.0,60417.0,0.3608]
[1727943759677,0.066202,60424.0,60420.0,0.29]
[1727943759867,0.6508,60438.0,60420.0,0.29]
[1727943759868,0.066204,60422.0,60420.0,0.29]
[1727943760169,0.066204,60422.0,60415.0,0.29]
[1727943760867,0.02912006,60426.0,60415.0,0.29]
[1727943761072,0.426998,60428.0,60415.0,0.29]
[1727943761372,0.066198,60428.0,60421.0,0.29]
[1727943761566,0.066198,60428.0,60419.0,0.44]
[1727943762275,0.0024834,60437.0,60419.0,0.44]
[1727943762577,0.066202,60424.0,60415.0,0.001]
[1727943762774,0.066202,60424.0,60414.0,0.81738]
[1727943763079,0.066202,60424.0,60419.0,0.001]
[1727943763472,0.066204,60422.0,60419.0,0.001]
[1727943763873,0.44,60430.0,60419.0,0.001]
[1727943764073,0.066205,60421.0,60419.0,0.001]
[1727943764876,0.066205,60421.0,60414.0,0.37738]
[1727943765178,0.066205,60421.0,60419.0,0.001]
[1727943765677,0.066191,60434.0,60419.0,0.001]
[1727943765877,0.44,60435.0,60419.0,0.001]
[1727943766077,0.44,60429.0,60414.0,0.37838]
[1727943766274,0.066206,60420.0,60414.0,0.37838]
[1727943766470,0.44,60429.0,60414.0,0.37838]
[1727943766772,0.066208,60419.0,60414.0,0.37838]
[1727943767170,0.44,60429.0,60414.0,0.37838]
[1727943767171,0.0662,60426.0,60414.0,0.37838]
[1727943767370,0.44,60429.0,60414.0,0.37838]
[1727943767573,0.46985487,60429.0,60414.0,0.37838]
[1727943767781,0.46985487,60429.0,60414.0,0.37738]
[1727943768075,0.066204,60422.0,60414.0,0.37738]
[1727943768275,0.066204,60422.0,60414.0,0.37838]
[1727943768774,0.066204,60422.0,60414.0,0.37738]
[1727943768982,0.066204,60422.0,60414.0,0.37838]
[1727943769777,0.46985487,60429.0,60414.0,0.37838]
[1727943769970,0.066206,60420.0,60414.0,0.37838]
[1727943770175,0.066208,60419.0,60414.0,0.37838]
[1727943770870,0.066201,60425.0,60414.0,0.37838]
[1727943771270,0.44,60430.0,60414.0,0.37838]
[1727943771477,0.066203,60423.0,60414.0,0.37838]
[1727943771879,0.46962902,60430.0,60414.0,0.37838]
[1727943771880,0.066204,60422.0,60414.0,0.37838]
[1727943772076,0.46962902,60430.0,60414.0,0.01758]
[1727943772077,0.3608,60418.0,60414.0,0.01758]
[1727943772281,0.427008,60418.0,60414.0,0.01758]
[1727943773280,0.066211,60416.0,60414.0,0.01758]
[1727943774575,0.36212,60418.0,60414.0,0.01758]
[1727943774883,0.3608,60429.0,60417.0,0.8008]
[1727943775077,0.45738565,60429.0,60417.0,0.8008]
[1727943775271,0.3608,60429.0,60422.0,0.44]
[1727943775680,0.02929717,60431.0,60422.0,0.44]
[1727943775879,0.066192,60433.0,60422.0,0.44]
[1727943776380,0.066192,60433.0,60418.0,1.50092]
[1727943776381,0.066204,60422.0,60418.0,1.50092]
[1727943776680,0.066204,60422.0,60418.0,1.5]
[1727943776990,0.066198,60427.0,60418.0,1.5]
[1727943777180,0.066198,60427.0,60417.0,0.3608]
[1727943777486,0.06619,60436.0,60422.0,0.001]
[1727943777487,0.066203,60423.0,60422.0,0.001]
[1727943777872,0.3608,60431.0,60415.0,0.033]
[1727943778076,0.3608,60431.0,60418.0,0.001]
[1727943778281,0.44,60430.0,60418.0,0.001]
[1727943778477,0.3608,60419.0,60414.0,0.01658]
[1727943778685,0.066212,60415.0,60414.0,0.01658]
[1727943778877,0.44,60424.0,60414.0,0.01658]
[1727943778878,0.066206,60420.0,60414.0,0.01658]
[1727943780586,0.066206,60420.0,60418.0,0.001]
[1727943780789,0.066207,60419.0,60418.0,0.001]
[1727943781187,0.8008,60424.0,60414.0,0.01758]
[1727943781385,0.066207,60419.0,60414.0,0.01758]
[1727943781886,0.3903713,60424.0,60418.0,0.001]
[1727943782080,0.3608,60424.0,60421.0,0.29]
[1727943782280,0.02933273,60427.0,60422.0,0.3608]
[1727943782489,0.3608,60431.0,60426.0,0.29]
[1727943783088,0.0039,60445.0,60430.0,0.3608]
[1727943783089,0.3608,60444.0,60430.0,0.3608]
[1727943783294,0.066178,60446.0,60436.0,0.29]
[1727943783589,0.066178,60446.0,60436.0,0.89]
[1727943783795,0.066178,60446.0,60436.0,1.3864]
[1727943783983,0.066178,60446.0,60435.0,0.3608]
[1727943783984,0.0297055,60444.0,60435.0,0.3608]
[1727943784286,0.29,60446.0,60435.0,0.3608]
[1727943784287,0.3608,60452.0,60435.0,0.3608]
[1727943784288,0.066183,60442.0,60435.0,0.3608]
[1727943784883,0.066183,60442.0,60436.0,0.291]
[1727943785084,0.066177,60447.0,60436.0,0.291]
[1727943785290,0.3608,60452.0,60436.0,0.291]
[1727943785291,0.066178,60446.0,60442.0,0.01658]
[1727943785879,0.39059984,60452.0,60442.0,0.01658]
[1727943786085,0.06618,60444.0,60442.0,0.01658]
[1727943786293,0.066181,60443.0,60442.0,0.01658]
[1727943786597,0.426981,60443.0,60442.0,0.01658]
[1727943787185,0.426981,60443.0,60435.0,0.001]
[1727943787186,0.066189,60436.0,60435.0,0.001]
[1727943787394,0.066189,60436.0,60422.0,0.3608]
[1727943787395,0.066198,60428.0,60422.0,0.3608]
[1727943788285,0.0357,60435.0,60422.0,0.3608]
[1727943788481,0.0662,60426.0,60424.0,0.01656]
[1727943788882,0.3608,60429.0,60424.0,0.01656]
[1727943788883,0.066201,60425.0,60424.0,0.01656]
[1727943789480,0.3608,60429.0,60424.0,0.01656]
[1727943790295,0.426996,60429.0,60424.0,0.01656]
[1727943790984,0.426996,60429.0,60424.0,0.01756]
[1727943791190,0.066201,60425.0,60424.0,0.01756]
[1727943792295,0.426996,60429.0,60424.0,0.01756]
[1727943792488,0.3608,60429.0,60424.0,0.01756]
[1727943792994,0.426996,60429.0,60424.0,0.01756]
[1727943793495,0.3608,60429.0,60424.0,0.01756]
[1727943793693,0.3608,60429.0,60425.0,0.44]
[1727943794097,0.3608,60429.0,60425.0,0.5062]
[1727943794400,0.03011582,60435.0,60427.0,0.066198]
[1727943794589,0.066187,60437.0,60431.0,0.44]
[1727943795295,0.03254129,60440.0,60431.0,0.44]
[1727943795484,0.066182,60442.0,60440.0,0.0140769]
[1727943795690,0.39117425,60443.0,60441.0,0.44]
[1727943795892,0.3608,60443.0,60441.0,0.44]
[1727943796096,0.066178,60446.0,60441.0,0.44]
[1727943796299,0.066173,60450.0,60441.0,0.44]
[1727943796507,0.3608,60454.0,60446.0,0.44]
[1727943796508,0.066175,60449.0,60446.0,0.44]
[1727943796713,0.3608,60454.0,60448.0,0.3608]
[1727943796714,0.066169,60454.0,60448.0,0.3608]
[1727943796914,0.066169,60454.0,60452.0,0.44]
[1727943797420,0.066166,60457.0,60454.0,0.01408]
[1727943797713,0.066168,60455.0,60454.0,0.01408]
[1727943798805,0.066168,60455.0,60454.0,0.01508]
[1727943799209,0.066168,60455.0,60454.0,0.01408]
[1727943799404,0.066168,60455.0,60454.0,0.01508]
[1727943800514,0.03164886,60461.0,60454.0,0.01508]
[1727943800515,0.066164,60459.0,60454.0,0.01508]
[1727943800711,0.03164886,60461.0,60458.0,0.44]
[1727943801015,0.3608,60469.0,60458.0,0.44]
[1727943801016,0.02934343,60469.0,60458.0,0.44]
[1727943801217,0.46376,60481.0,60454.0,0.61508]
[1727943801218,0.44,60476.0,60459.0,0.3608]
[1727943801412,0.3608,60477.0,60455.0,0.00084]
[1727943801413,0.066166,60457.0,60455.0,0.00084]
[1727943801719,0.3608,60468.0,60454.0,0.01508]
[1727943801720,0.066168,60455.0,60454.0,0.01508]
[1727943801909,0.06617,60453.0,60435.0,0.8386]
[1727943802109,0.44,60455.0,60435.0,0.3608]
[1727943802110,0.0379,60454.0,60435.0,0.3608]
[1727943802310,0.0379,60454.0,60442.0,0.01656]
[1727943802311,0.066182,60443.0,60442.0,0.01656]
[1727943802507,0.426982,60443.0,60442.0,0.01656]
[1727943803311,0.0379,60454.0,60442.0,0.01656]
[1727943803312,0.06770537,60454.0,60442.0,0.01656]
[1727943803527,0.3608,60456.0,60448.0,0.44]
[1727943804018,0.3608,60456.0,60442.0,0.01656]
[1727943804208,0.44,60455.0,60442.0,0.01656]
[1727943804516,0.3608,60456.0,60442.0,0.01756]
[1727943805127,0.3608,60456.0,60442.0,0.01656]
[1727943805324,0.3608,60456.0,60443.0,0.44]
[1727943805620,0.3608,60456.0,60442.0,0.30656]
[1727943805817,0.29,60446.0,60442.0,0.01656]
[1727943806017,0.0382,60445.0,60442.0,0.01656]
[1727943807720,0.3608,60456.0,60442.0,0.01656]
[1727943807923,0.0382,60455.0,60442.0,0.01756]
[1727943808423,0.0382,60455.0,60444.0,0.066179]
[1727943808919,0.0382,60455.0,60446.0,0.44]
[1727943809325,0.0382,60455.0,60442.0,0.01656]
[1727943810022,0.0382,60455.0,60446.0,0.44]
[1727943810523,0.3608,60456.0,60446.0,0.44]
[1727943811021,0.09670248,60461.0,60447.0,0.3608]
[1727943811220,0.03054148,60461.0,60452.0,0.44]
[1727943811522,0.039,60464.0,60455.0,0.01656]
[1727943812015,0.002482,60465.0,60458.0,0.44]
[1727943812811,0.002482,60465.0,60455.0,0.01656]
[1727943813013,0.066161,60462.0,60455.0,0.01656]
[1727943813225,0.002482,60465.0,60455.0,0.01656]
[1727943813427,0.0323619,60465.0,60455.0,0.01656]
[1727943813724,0.002482,60465.0,60455.0,0.01656]
[1727943814315,0.066164,60459.0,60455.0,0.01656]
[1727943814515,0.066164,60459.0,60455.0,0.01756]
[1727943815119,0.06616,60463.0,60455.0,0.01756]
[1727943815516,0.066161,60462.0,60455.0,0.01756]
[1727943816214,0.002482,60465.0,60459.0,0.44]
[1727943816724,0.002482,60465.0,60455.0,0.01756]
[1727943816917,0.44,60462.0,60455.0,0.01756]
[1727943817116,0.06616,60462.0,60455.0,0.01756]
[1727943817316,0.002482,60465.0,60455.0,0.01756]
[1727943817718,0.002482,60465.0,60459.0,0.001]
[1727943817719,0.066159,60464.0,60459.0,0.001]
[1727943818518,0.066159,60464.0,60455.0,0.01756]
[1727943818733,0.002482,60465.0,60455.0,0.01756]
[1727943819426,0.002482,60465.0,60457.0,0.066165]
[1727943820022,0.002482,60465.0,60460.0,0.44]
[1727943820328,0.3608,60467.0,60461.0,0.066161]
[1727943820720,0.06615,60471.0,60462.0,0.06616]
[1727943821425,0.39048568,60475.0,60470.0,0.44]
[1727943821727,0.39048568,60475.0,60470.0,0.01656]
[1727943821728,0.066148,60473.0,60470.0,0.01656]
[1727943822828,0.39048568,60475.0,60470.0,0.01656]
[1727943822829,0.066149,60472.0,60470.0,0.01656]
[1727943824030,0.39048568,60475.0,60470.0,0.01656]
[1727943824229,0.39048568,60475.0,60470.0,0.01756]
[1727943824727,0.39048568,60475.0,60470.0,0.01656]
[1727943825029,0.39048568,60475.0,60470.0,0.01756]
[1727943825225,0.39048568,60475.0,60470.0,0.01656]
[1727943825427,0.39048568,60475.0,60470.0,0.01756]
[1727943825624,0.00140001,60484.0,60476.0,0.066145]
[1727943825825,0.00140001,60484.0,60474.0,0.3608]
[1727943825826,0.03404158,60485.0,60482.0,0.44]
[1727943826020,0.03012164,60494.0,60488.0,0.01656]
[1727943826324,0.50002,60508.0,60488.0,0.45656]
[1727943826532,0.46356,60508.0,60494.0,0.44]
[1727943826721,0.46356,60508.0,60485.0,1.5]
[1727943826722,0.02924868,60508.0,60505.0,0.44]
[1727943826924,0.3608,60511.0,60505.0,0.44]
[1727943827116,0.3608,60511.0,60510.0,0.44]
[1727943827318,0.00247996,60514.0,60510.0,0.44]
[1727943827726,0.3608,60522.0,60510.0,0.44]
[1727943828029,0.3608,60522.0,60516.0,0.01656]
[1727943828030,0.066099,60518.0,60516.0,0.01656]
[1727943828616,0.44,60517.0,60516.0,0.01656]
[1727943828828,0.066099,60518.0,60516.0,0.01656]
[1727943829839,0.066106,60511.0,60510.0,0.001]
[1727943830125,0.066114,60504.0,60503.0,0.00247889]
[1727943830330,0.356114,60504.0,60503.0,0.00247889]
[1727943830632,1.161954,60504.0,60503.0,0.00247889]
[1727943830827,1.451954,60504.0,60503.0,0.00247889]
[1727943831127,0.29,60504.0,60496.0,0.01654]
[1727943831329,0.066115,60504.0,60496.0,0.01654]
[1727943831628,0.066115,60504.0,60503.0,0.001]
[1727943833131,0.09543398,60504.0,60503.0,0.001]
[1727943833325,0.426906,60511.0,60503.0,0.441]
[1727943833631,0.39129198,60511.0,60503.0,0.441]
[1727943833835,0.39129198,60511.0,60496.0,0.01754]
[1727943833836,0.066119,60500.0,60496.0,0.01754]
[1727943834021,0.06612,60499.0,60496.0,0.01754]
[1727943834329,0.068115,60504.0,60496.0,0.01754]
[1727943834530,0.066115,60504.0,60503.0,0.001]
[1727943835019,0.066119,60500.0,60496.0,0.01754]
[1727943835219,0.002,60499.0,60496.0,0.01754]
[1727943835623,0.002,60504.0,60503.0,0.001]
[1727943835821,0.068114,60504.0,60503.0,0.001]
[1727943836227,0.668114,60504.0,60503.0,0.001]
[1727943836528,1.163954,60504.0,60503.0,0.001]
[1727943837028,0.066122,60497.0,60496.0,0.01654]
[1727943837229,0.066122,60497.0,60496.0,0.01754]
[1727943837826,0.066122,60497.0,60496.0,0.01654]
[1727943838025,0.426922,60497.0,60496.0,0.01654]
[1727943838637,0.3608,60497.0,60496.0,0.01654]
[1727943838944,0.3608,60501.0,60496.0,0.01654]
[1727943839324,0.3608,60501.0,60499.0,0.44]
[1727943840439,0.3608,60501.0,60496.0,0.01754]
[1727943840745,0.3608,60501.0,60496.0,0.01654]
[1727943840938,0.3638,60501.0,60499.0,0.001]
[1727943841835,0.3608,60501.0,60496.0,0.01654]
[1727943842034,0.3638,60501.0,60496.0,0.01754]
[1727943842230,0.3638,60501.0,60500.0,0.44]
[1727943842624,0.3638,60501.0,60500.0,1.53588]
[1727943843437,0.3628,60501.0,60500.0,1.53588]
[1727943843635,0.3608,60511.0,60504.0,0.066113]
[1727943843937,0.066096,60521.0,60510.0,0.44]
[1727943844140,0.3608,60523.0,60515.0,0.44]
[1727943844336,0.066103,60515.0,60512.0,0.01654]
[1727943844746,0.066097,60521.0,60513.0,0.49576]
[1727943844946,0.3608,60523.0,60520.0,0.44]
[1727943845243,0.03013727,60524.0,60520.0,0.44]
[1727943845440,0.066084,60532.0,60526.0,0.01654]
[1727943845740,0.066084,60532.0,60530.0,0.44]
[1727943846044,0.03033965,60533.0,60530.0,0.44]
[1727943846239,0.03033965,60533.0,60528.0,0.3608]
[1727943846240,0.066072,60543.0,60532.0,0.44]
[1727943846445,0.066072,60543.0,60542.0,0.44]
[1727943847031,0.39041004,60545.0,60542.0,0.44]
[1727943847229,0.00144,60556.0,60543.0,0.49552]
[1727943847430,0.00144,60556.0,60542.0,1.04]
[1727943847431,0.06606,60554.0,60548.0,0.44]
[1727943847638,0.06606,60554.0,60541.0,0.082614]
[1727943847639,0.3608,60557.0,60543.0,0.44]
[1727943848049,0.066061,60553.0,60548.0,0.44]
[1727943848441,0.3608,60557.0,60548.0,0.44]
[1727943848744,0.44,60554.0,60542.0,0.001]
[1727943848947,0.426872,60543.0,60542.0,0.001]
[1727943849440,0.426872,60543.0,60541.0,0.01654]
[1727943849943,0.426872,60543.0,60528.0,0.37734]
[1727943849944,0.066085,60531.0,60528.0,0.37734]
[1727943850159,0.426872,60543.0,60528.0,0.01654]
[1727943850160,0.066087,60529.0,60528.0,0.01654]
[1727943850638,0.506087,60529.0,60528.0,0.01654]
[1727943850842,0.066099,60518.0,60517.0,0.00247842]
[1727943852952,0.066099,60518.0,60517.0,0.00347842]
[1727943853440,0.066106,60511.0,60510.0,0.01654]
[1727943854337,0.3608,60512.0,60510.0,0.01654]
[1727943855432,0.426906,60512.0,60510.0,0.01654]
[1727943855640,0.29,60511.0,60510.0,0.01654]
[1727943855860,0.78576,60511.0,60510.0,0.00084208]
[1727943856142,1.026906,60512.0,60510.0,0.00084208]
[1727943856143,0.428186,60512.0,60510.0,0.00084208]
[1727943856344,0.3608,60512.0,60510.0,0.001]
[1727943857047,0.066108,60510.0,60502.0,0.29]
[1727943857345,0.066109,60509.0,60502.0,0.29]
[1727943857538,0.066111,60507.0,60497.0,0.29247908]
[1727943857739,0.3608,60512.0,60505.0,0.29]
[1727943858039,0.3608,60512.0,60506.0,0.01654]
[1727943858738,0.066109,60509.0,60506.0,0.01654]
[1727943859145,0.3608,60512.0,60510.0,0.001]
[1727943859442,0.02999782,60518.0,60510.0,0.001]
[1727943859747,0.8252,60519.0,60506.0,0.01754]
[1727943859944,0.82392,60519.0,60506.0,0.01754]
[1727943860138,0.066102,60515.0,60506.0,0.01754]
[1727943860337,0.066102,60515.0,60510.0,0.001]
[1727943860951,0.066102,60515.0,60506.0,0.01654]
[1727943861147,0.8549187,60519.0,60506.0,0.01654]
[1727943861339,0.8535587,60519.0,60506.0,0.01654]
[1727943861542,0.066101,60516.0,60506.0,0.01654]
[1727943861740,0.8535587,60519.0,60506.0,0.01654]
[1727943861741,0.066102,60515.0,60506.0,0.01654]
[1727943862648,0.066102,60515.0,60510.0,0.001]
[1727943863047,0.066102,60515.0,60506.0,0.01654]
[1727943863353,0.066102,60515.0,60506.0,0.01754]
[1727943863738,0.8548387,60519.0,60510.0,0.001]
[1727943863938,0.29,60518.0,60510.0,0.001]
[1727943864139,0.066106,60511.0,60510.0,0.001]
[1727943864352,0.066106,60511.0,60506.0,0.01754]
[1727943864942,0.066102,60515.0,60506.0,0.01754]
[1727943865839,0.066102,60515.0,60510.0,0.001]
[1727943866049,0.8548387,60519.0,60510.0,0.001]
[1727943866050,0.066099,60518.0,60510.0,0.001]
[1727943866252,0.3904387,60519.0,60510.0,0.001]
[1727943866443,0.3904387,60519.0,60509.0,0.29]
[1727943867057,0.3904387,60519.0,60510.0,0.001]
[1727943867560,0.3904387,60519.0,60514.0,0.29]
[1727943867759,0.3904387,60519.0,60514.0,1.79]
[1727943867968,0.3608,60525.0,60518.0,0.29]
[1727943868142,0.3608,60525.0,60524.0,0.29]
[1727943868143,0.38988311,60525.0,60524.0,0.29]
[1727943868652,0.38988311,60525.0,60514.0,1.50084]
[1727943868653,0.38988311,60525.0,60522.0,0.01654]
[1727943869552,0.38988311,60525.0,60524.0,0.29]
[1727943869757,0.38988311,60525.0,60524.0,0.001]
[1727943869943,0.38988311,60525.0,60522.0,0.01654]
[1727943869944,0.066093,60523.0,60522.0,0.00681399]
[1727943870254,0.066095,60522.0,60500.0,0.426918]
[1727943870456,0.066095,60522.0,60500.0,0.3608]
[1727943870457,0.066107,60511.0,60500.0,0.3608]
[1727943870961,0.29,60515.0,60500.0,0.3608]
[1727943871165,0.066101,60516.0,60503.0,0.356115]
[1727943871458,0.29,60520.0,60503.0,0.356115]
[1727943871459,0.066103,60515.0,60503.0,0.356115]
[1727943871654,0.29,60520.0,60503.0,0.356115]
[1727943871854,0.29,60520.0,60503.0,0.29]
[1727943872152,0.29,60520.0,60500.0,0.3608]
[1727943872153,0.066111,60507.0,60500.0,0.3608]
[1727943872360,0.1004,60524.0,60497.0,0.00247908]
[1727943872361,0.426913,60505.0,60497.0,0.00247908]
[1727943873450,0.426913,60505.0,60500.0,0.001]
[1727943873653,0.3608,60505.0,60500.0,0.001]
[1727943874053,0.3618,60505.0,60499.0,0.30654]
[1727943875760,0.3608,60505.0,60500.0,0.001]
[1727943876249,0.3608,60505.0,60499.0,0.30654]
[1727943876948,0.3608,60505.0,60500.0,0.001]
[1727943877355,0.3608,60505.0,60499.0,0.30754]
[1727943878664,0.3608,60505.0,60504.0,0.29]
[1727943879162,0.066113,60505.0,60504.0,1.5]
[1727943879348,0.030434,60508.0,60504.0,1.5]
[1727943879349,0.0039,60524.0,60504.0,3.24664]
[1727943879659,0.066098,60519.0,60514.0,0.29]
[1727943879959,0.39108213,60520.0,60514.0,0.29]
[1727943881056,0.39108213,60520.0,60511.0,0.01654]
[1727943881057,0.3608,60520.0,60519.0,0.29]
[1727943882553,0.03049885,60523.0,60519.0,0.291]
[1727943882753,0.066091,60525.0,60519.0,0.291]
[1727943883060,0.00247949,60526.0,60524.0,0.29]
[1727943885564,0.06857049,60526.0,60524.0,0.001]
[1727943885866,0.09776679,60526.0,60525.0,1.5]
[1727943886167,0.03167579,60526.0,60525.0,1.5]
[1727943886365,0.03167579,60526.0,60524.0,0.001]
[1727943888464,0.03167579,60526.0,60525.0,0.001]
[1727943889564,0.03167579,60526.0,60525.0,0.426891]
[1727943890264,0.03167579,60526.0,60525.0,0.427891]
[1727943891664,0.0321,60537.0,60525.0,0.3618]
[1727943891968,0.37153157,60526.0,60525.0,0.3618]
[1727943892662,0.37153157,60526.0,60525.0,0.3608]
[1727943892873,0.37153157,60526.0,60525.0,0.3618]
[1727943893367,0.3608,60542.0,60538.0,0.066076]
[1727943893580,0.3608,60542.0,60535.0,0.35608]
[1727943893764,0.39047912,60542.0,60537.0,0.066077]
[1727943893963,0.39047912,60542.0,60541.0,0.356074]
[1727943893964,0.02967912,60542.0,60541.0,0.356074]
[1727943894168,0.00247855,60548.0,60547.0,0.066067]
[1727943894361,0.03215172,60548.0,60547.0,0.066067]
[1727943895358,0.03215172,60548.0,60545.0,0.29]
[1727943895359,0.0333,60559.0,60545.0,0.29]
[1727943895559,0.0333,60559.0,60554.0,0.066059]
[1727943895764,0.066058,60556.0,60544.0,0.01654]
[1727943896259,0.39092612,60557.0,60548.0,0.066065]
[1727943896569,0.39092612,60557.0,60547.0,0.001]
[1727943896772,0.39092612,60557.0,60551.0,0.356063]
[1727943896980,0.39092612,60557.0,60551.0,0.29]
[1727943897271,0.39092612,60557.0,60556.0,0.29]
[1727943897272,0.03012612,60557.0,60556.0,0.29]
[1727943897570,0.0662,60567.0,60551.0,0.6508]
[1727943897764,0.066053,60561.0,60551.0,0.3608]
[1727943898273,0.0662,60567.0,60551.0,0.3608]
[1727943898274,0.29,60566.0,60551.0,0.3608]
[1727943898977,0.39064641,60564.0,60551.0,0.3618]
[1727943899172,0.06605,60563.0,60551.0,0.3618]
[1727943900376,0.3608,60558.0,60551.0,0.001]
[1727943900872,0.45669541,60564.0,60551.0,0.001]
[1727943901264,0.39064641,60564.0,60555.0,0.29]
[1727943901867,0.39064641,60564.0,60560.0,0.29]
[1727943902072,0.39064641,60564.0,60562.0,0.01654]
[1727943902372,0.39064641,60564.0,60563.0,0.06605]
[1727943902672,0.02984641,60564.0,60563.0,0.56141]
[1727943902876,0.0342,60580.0,60567.0,0.066045]
[1727943903078,0.0342,60580.0,60569.0,0.29]
[1727943903079,0.03173051,60570.0,60569.0,0.29]
[1727943903372,0.03173051,60570.0,60568.0,1.5]
[1727943903373,0.00247765,60570.0,60568.0,1.50084]
[1727943903562,0.066037,60575.0,60568.0,1.50084]
[1727943903766,0.29,60573.0,60562.0,0.01754]
[1727943903964,0.356049,60564.0,60562.0,0.01754]
[1727943904163,0.066053,60560.0,60548.0,0.3608]
[1727943904576,0.066056,60558.0,60548.0,0.3608]
[1727943905275,0.0653,60563.0,60556.0,0.29]
[1727943905977,0.0653,60563.0,60555.0,0.01653]
[1727943906169,0.066054,60559.0,60555.0,0.01653]
[1727943906666,0.066054,60559.0,60556.0,0.001]
[1727943908473,0.09541015,60563.0,60558.0,0.29]
[1727943909280,0.066057,60556.0,60555.0,0.01753]
[1727943909578,0.066057,60556.0,60555.0,0.01653]
[1727943909579,0.426857,60556.0,60555.0,0.01653]
[1727943909778,0.066065,60549.0,60539.0,0.29]
[1727943909985,0.3608,60556.0,60548.0,0.29]
[1727943909986,0.06606,60554.0,60548.0,0.29]
[1727943910170,0.3608,60556.0,60553.0,0.29]
[1727943910369,0.39068899,60556.0,60553.0,0.29]
[1727943910771,0.39268899,60556.0,60555.0,0.001]
[1727943911280,0.066059,60555.0,60543.0,0.00247714]
[1727943911471,0.06607,60544.0,60543.0,0.00247714]
[1727943911674,0.35607,60544.0,60543.0,0.00247714]
[1727943911881,0.06607,60544.0,60543.0,0.00247714]
[1727943912285,0.06606,60554.0,60553.0,0.001]
[1727943912670,0.39168899,60556.0,60553.0,0.001]
[1727943912882,0.39168899,60556.0,60543.0,0.00247714]
[1727943912883,0.39068899,60556.0,60555.0,0.29]
[1727943913180,0.39068899,60556.0,60551.0,0.29]
[1727943913486,0.39068899,60556.0,60553.0,0.001]
[1727943913487,0.001,60554.0,60553.0,0.001]
[1727943913871,0.06706,60554.0,60553.0,0.001]
[1727943914471,1.1625,60554.0,60543.0,0.00247714]
[1727943914777,0.066067,60548.0,60543.0,0.00247714]
[1727943915082,0.066068,60546.0,60543.0,0.00247714]
[1727943915388,0.3608,60556.0,60543.0,0.00247714]
[1727943915389,0.3628,60556.0,60543.0,0.00247714]